[Event "Early-Titled-Tuesday-Blitz-May-07-2024"]
[Site "Chess.com"]
[Date "2024.05.07"]
[Round "8"]
[White "Sokoloco"]
[Black "GrotBchess"]
[Result "1-0"]
[WhiteElo "2807"]
[BlackElo "2506"]
[TimeControl "180+1"]
[EndTime "9:33:19 PDT"]
[Termination "Sokoloco won by resignation"]

1. g3 {[%clk 0:03:00.9]} 1... Nf6 {[%clk 0:02:55.1]} 2. Bg2 {[%clk 0:02:59.7]}
2... e6 {[%clk 0:02:54.4]} 3. e4 {[%clk 0:02:59.9]} 3... d5 {[%clk 0:02:49.6]}
4. e5 {[%clk 0:02:49.9]} 4... Nfd7 {[%clk 0:02:47.4]} 5. d4 {[%clk 0:02:49.5]}
5... c5 {[%clk 0:02:47.3]} 6. c3 {[%clk 0:02:50.2]} 6... Nc6 {[%clk 0:02:47.6]}
7. Ne2 {[%clk 0:02:47.8]} 7... Be7 {[%clk 0:02:46.5]} 8. O-O {[%clk 0:02:48.2]}
8... Qb6 {[%clk 0:02:42.6]} 9. a3 {[%clk 0:02:07.4]} 9... O-O {[%clk 0:02:37.5]}
10. b4 {[%clk 0:01:44.8]} 10... cxd4 {[%clk 0:02:35.7]} 11. cxd4 {[%clk
0:01:43.3]} 11... a5 {[%clk 0:02:35.2]} 12. bxa5 {[%clk 0:01:42.3]} 12... Rxa5
{[%clk 0:02:35]} 13. a4 {[%clk 0:01:36.4]} 13... Qa7 {[%clk 0:02:32.2]} 14. Nbc3
{[%clk 0:01:36.3]} 14... b6 {[%clk 0:02:27.1]} 15. Nb5 {[%clk 0:01:33.3]} 15...
Qa8 {[%clk 0:02:12.8]} 16. Nec3 {[%clk 0:01:32.7]} 16... Ba6 {[%clk 0:02:10]}
17. Rb1 {[%clk 0:01:33.3]} 17... Bb4 {[%clk 0:02:08.4]} 18. Bd2 {[%clk
0:00:57.3]} 18... Rc8 {[%clk 0:01:57.6]} 19. Nxd5 {[%clk 0:00:42.5]} 19... Bxb5
{[%clk 0:01:18.9]} 20. axb5 {[%clk 0:00:37.4]} 20... Bxd2 {[%clk 0:00:34.6]} 21.
bxc6 {[%clk 0:00:30]} 1-0

[Event "Early-Titled-Tuesday-Blitz-May-07-2024"]
[Site "Chess.com"]
[Date "2024.05.07"]
[Round "8"]
[White "DenisQ"]
[Black "ckgchess"]
[Result "1/2-1/2"]
[WhiteElo "2723"]
[BlackElo "2898"]
[TimeControl "180+1"]
[EndTime "9:33:20 PDT"]
[Termination "Game drawn by repetition"]

1. Nf3 {[%clk 0:03:00.9]} 1... g6 {[%clk 0:03:00]} 2. g3 {[%clk 0:03:00.4]} 2...
Bg7 {[%clk 0:03:00.9]} 3. Bg2 {[%clk 0:03:00.2]} 3... e5 {[%clk 0:03:01.4]} 4.
O-O {[%clk 0:03:00.1]} 4... d5 {[%clk 0:03:02.1]} 5. d3 {[%clk 0:02:57]} 5...
Ne7 {[%clk 0:03:01.8]} 6. e4 {[%clk 0:02:56.6]} 6... O-O {[%clk 0:02:59.4]} 7.
exd5 {[%clk 0:02:54.7]} 7... Nxd5 {[%clk 0:02:59.1]} 8. Nc3 {[%clk 0:02:55.4]}
8... Nb6 {[%clk 0:02:46.7]} 9. Re1 {[%clk 0:02:48]} 9... Nc6 {[%clk 0:02:46.8]}
10. Bg5 {[%clk 0:02:47.1]} 10... f6 {[%clk 0:02:42.5]} 11. Be3 {[%clk
0:02:46.7]} 11... Be6 {[%clk 0:02:42.5]} 12. d4 {[%clk 0:02:33.5]} 12... Bg4
{[%clk 0:02:30.5]} 13. dxe5 {[%clk 0:02:26.8]} 13... Qxd1 {[%clk 0:02:23.2]} 14.
Nxd1 {[%clk 0:02:19.4]} 14... fxe5 {[%clk 0:02:22.7]} 15. Ng5 {[%clk 0:02:14.5]}
15... Rad8 {[%clk 0:02:16.5]} 16. Bxb6 {[%clk 0:02:06.1]} 16... axb6 {[%clk
0:02:16.2]} 17. Ne3 {[%clk 0:02:06]} 17... Bh6 {[%clk 0:02:00.1]} 18. Nxg4
{[%clk 0:02:02.8]} 18... Bxg5 {[%clk 0:02:00.3]} 19. Bxc6 {[%clk 0:01:46.4]}
19... bxc6 {[%clk 0:02:01.2]} 20. Rxe5 {[%clk 0:01:45.7]} 20... Rf5 {[%clk
0:01:54.1]} 21. Rae1 {[%clk 0:01:39]} 21... Rd2 {[%clk 0:01:50.4]} 22. R5e2
{[%clk 0:01:33.7]} 22... h5 {[%clk 0:01:50.6]} 23. Rxd2 {[%clk 0:01:27.3]} 23...
Bxd2 {[%clk 0:01:51.5]} 24. Re2 {[%clk 0:01:23.3]} 24... Bc1 {[%clk 0:01:52.1]}
25. Ne3 {[%clk 0:01:19.4]} 25... Ra5 {[%clk 0:01:51.3]} 26. a3 {[%clk
0:01:03.6]} 26... Bxb2 {[%clk 0:01:49.7]} 27. Nc4 {[%clk 0:01:03.4]} 27... Rb5
{[%clk 0:01:50.5]} 28. a4 {[%clk 0:00:54.4]} 28... Rb4 {[%clk 0:01:50.4]} 29.
Nxb2 {[%clk 0:00:54.2]} 29... Rxb2 {[%clk 0:01:51.3]} 30. Re7 {[%clk 0:00:51.8]}
30... Rxc2 {[%clk 0:01:48.6]} 31. Rxc7 {[%clk 0:00:51.7]} 31... Rc4 {[%clk
0:01:45]} 32. h4 {[%clk 0:00:49.1]} 32... c5 {[%clk 0:01:23.2]} 33. Rc6 {[%clk
0:00:47.2]} 33... Kf7 {[%clk 0:01:23]} 34. Rxb6 {[%clk 0:00:45.1]} 34... Rxa4
{[%clk 0:01:23.4]} 35. Rc6 {[%clk 0:00:45.3]} 35... Rc4 {[%clk 0:01:22.9]} 36.
Kf1 {[%clk 0:00:44.1]} 36... Rc2 {[%clk 0:01:22.8]} 37. Kg2 {[%clk 0:00:44.3]}
37... c4 {[%clk 0:01:23.2]} 38. Kf3 {[%clk 0:00:44.2]} 38... c3 {[%clk
0:01:23.5]} 39. Ke3 {[%clk 0:00:44]} 39... Rc1 {[%clk 0:01:20.8]} 40. Kd3 {[%clk
0:00:42.2]} 40... Rf1 {[%clk 0:01:20.5]} 41. Ke2 {[%clk 0:00:39.4]} 41... Rc1
{[%clk 0:01:18.8]} 42. Kd3 {[%clk 0:00:39.5]} 42... Rd1+ {[%clk 0:01:18.8]} 43.
Ke3 {[%clk 0:00:39.7]} 43... Re1+ {[%clk 0:01:16.3]} 44. Kd3 {[%clk 0:00:39.8]}
44... Rf1 {[%clk 0:01:10]} 45. Ke2 {[%clk 0:00:39.6]} 45... Rc1 {[%clk
0:01:10.1]} 46. Kd3 {[%clk 0:00:39.7]} 1/2-1/2

[Event "Early-Titled-Tuesday-Blitz-May-07-2024"]
[Site "Chess.com"]
[Date "2024.05.07"]
[Round "8"]
[White "miaou33"]
[Black "scarabee43"]
[Result "0-1"]
[WhiteElo "2570"]
[BlackElo "2828"]
[TimeControl "180+1"]
[EndTime "9:33:22 PDT"]
[Termination "scarabee43 won by checkmate"]

1. e4 {[%clk 0:03:00.9]} 1... c5 {[%clk 0:02:59.7]} 2. Nf3 {[%clk 0:03:00.4]}
2... e6 {[%clk 0:03:00.2]} 3. g3 {[%clk 0:02:50.4]} 3... Nc6 {[%clk 0:02:59.2]}
4. Bg2 {[%clk 0:02:50.8]} 4... Nf6 {[%clk 0:02:58.5]} 5. d3 {[%clk 0:02:50.5]}
5... d5 {[%clk 0:02:57]} 6. exd5 {[%clk 0:02:48.7]} 6... Nxd5 {[%clk 0:02:55.3]}
7. O-O {[%clk 0:02:49.1]} 7... Be7 {[%clk 0:02:55.9]} 8. Nc3 {[%clk 0:02:43.6]}
8... O-O {[%clk 0:02:53.8]} 9. Re1 {[%clk 0:02:34.4]} 9... Nxc3 {[%clk
0:02:47.9]} 10. bxc3 {[%clk 0:02:34.2]} 10... Bf6 {[%clk 0:02:48.5]} 11. Bd2
{[%clk 0:02:27.9]} 11... b6 {[%clk 0:02:48.5]} 12. Ng5 {[%clk 0:02:15.7]} 12...
Bb7 {[%clk 0:02:42.8]} 13. Qh5 {[%clk 0:02:16.3]} 13... h6 {[%clk 0:02:41.2]}
14. Ne4 {[%clk 0:02:16.2]} 14... Be7 {[%clk 0:02:40]} 15. Bxh6 {[%clk
0:01:47.9]} 15... gxh6 {[%clk 0:02:39.5]} 16. Qxh6 {[%clk 0:01:48.8]} 16... Ne5
{[%clk 0:02:26.1]} 17. Nd6 {[%clk 0:01:26]} 17... Nf3+ {[%clk 0:02:18.9]} 18.
Bxf3 {[%clk 0:01:22]} 18... Bxf3 {[%clk 0:02:18.4]} 19. Re5 {[%clk 0:01:20.5]}
19... Qxd6 {[%clk 0:02:10.2]} 20. Rae1 {[%clk 0:00:54.9]} 20... Qd8 {[%clk
0:01:15.7]} 21. R1e3 {[%clk 0:00:20.6]} 21... Bf6 {[%clk 0:01:12.7]} 22. R5e4
{[%clk 0:00:11]} 22... Bg7 {[%clk 0:01:07.8]} 23. Qh3 {[%clk 0:00:05.4]} 23...
Bxe4 {[%clk 0:01:07.9]} 24. Rxe4 {[%clk 0:00:06.3]} 24... f5 {[%clk 0:01:02.5]}
25. Rxe6 {[%clk 0:00:03]} 25... Qd5 {[%clk 0:01:02.7]} 26. Rg6 {[%clk
0:00:02.7]} 26... Rae8 {[%clk 0:01:03.1]} 27. Kf1 {[%clk 0:00:01.4]} 27... Qh1#
{[%clk 0:01:02.4]} 0-1

[Event "Early-Titled-Tuesday-Blitz-May-07-2024"]
[Site "Chess.com"]
[Date "2024.05.07"]
[Round "8"]
[White "mind1mover"]
[Black "Yeritsyaan"]
[Result "1-0"]
[WhiteElo "2901"]
[BlackElo "2715"]
[TimeControl "180+1"]
[EndTime "9:33:23 PDT"]
[Termination "mind1mover won by checkmate"]

1. e4 {[%clk 0:03:00.9]} 1... e5 {[%clk 0:02:57.4]} 2. Nf3 {[%clk 0:03:01.2]}
2... Nc6 {[%clk 0:02:56.7]} 3. Bc4 {[%clk 0:03:01.4]} 3... Bc5 {[%clk
0:02:56.4]} 4. d3 {[%clk 0:03:00.8]} 4... Nf6 {[%clk 0:02:55.6]} 5. Be3 {[%clk
0:03:00.7]} 5... Bb6 {[%clk 0:02:42.4]} 6. Nc3 {[%clk 0:02:55.5]} 6... d6 {[%clk
0:02:40.9]} 7. O-O {[%clk 0:02:56.2]} 7... Bg4 {[%clk 0:02:39.4]} 8. h3 {[%clk
0:02:56.2]} 8... Bh5 {[%clk 0:02:39.3]} 9. g4 {[%clk 0:02:46.2]} 9... Bg6 {[%clk
0:02:36.6]} 10. Bg5 {[%clk 0:02:41.8]} 10... h6 {[%clk 0:02:34.7]} 11. Bh4
{[%clk 0:02:41.2]} 11... h5 {[%clk 0:02:20.2]} 12. g5 {[%clk 0:02:23.3]} 12...
Nd7 {[%clk 0:02:12.1]} 13. Nd5 {[%clk 0:02:17.3]} 13... Nc5 {[%clk 0:02:08.5]}
14. Qd2 {[%clk 0:02:08]} 14... Ne6 {[%clk 0:02:05.8]} 15. Kh2 {[%clk 0:02:07.5]}
15... Qd7 {[%clk 0:01:49.3]} 16. a4 {[%clk 0:01:59.5]} 16... a6 {[%clk
0:01:30.5]} 17. b4 {[%clk 0:01:52.4]} 17... Ne7 {[%clk 0:01:11.2]} 18. a5 {[%clk
0:01:36.3]} 18... Nxd5 {[%clk 0:01:07.2]} 19. exd5 {[%clk 0:01:37.2]} 19... Nf4
{[%clk 0:01:07.4]} 20. Ng1 {[%clk 0:01:35.1]} 20... Bd4 {[%clk 0:01:04.9]} 21.
c3 {[%clk 0:01:33.9]} 21... Ba7 {[%clk 0:01:04.9]} 22. Bg3 {[%clk 0:01:32.9]}
22... Qf5 {[%clk 0:01:00.7]} 23. Bxf4 {[%clk 0:01:32.2]} 23... exf4 {[%clk
0:01:01]} 24. Rae1+ {[%clk 0:01:31.7]} 24... Kf8 {[%clk 0:00:56]} 25. Nf3 {[%clk
0:01:31.7]} 25... h4 {[%clk 0:00:51.3]} 26. Re4 {[%clk 0:01:29.9]} 26... Qd7
{[%clk 0:00:35.9]} 27. Qxf4 {[%clk 0:01:23.3]} 27... Bxe4 {[%clk 0:00:35]} 28.
dxe4 {[%clk 0:01:24.2]} 28... Re8 {[%clk 0:00:30.7]} 29. Nxh4 {[%clk 0:01:24.4]}
29... Kg8 {[%clk 0:00:27.9]} 30. Nf5 {[%clk 0:01:22.6]} 30... b5 {[%clk
0:00:11.5]} 31. axb6 {[%clk 0:01:21]} 31... Bxb6 {[%clk 0:00:10.6]} 32. h4
{[%clk 0:01:21.6]} 32... a5 {[%clk 0:00:10.9]} 33. b5 {[%clk 0:01:21.2]} 33...
a4 {[%clk 0:00:09.7]} 34. Ra1 {[%clk 0:01:19.4]} 34... Ra8 {[%clk 0:00:09.8]}
35. e5 {[%clk 0:01:20.1]} 35... dxe5 {[%clk 0:00:09.9]} 36. Qxe5 {[%clk
0:01:21]} 36... Bc5 {[%clk 0:00:10.2]} 37. Qxg7# {[%clk 0:01:21]} 1-0

[Event "Early-Titled-Tuesday-Blitz-May-07-2024"]
[Site "Chess.com"]
[Date "2024.05.07"]
[Round "8"]
[White "subham777"]
[Black "Sofia_Blokhin"]
[Result "1-0"]
[WhiteElo "2475"]
[BlackElo "2265"]
[TimeControl "180+1"]
[EndTime "9:33:28 PDT"]
[Termination "subham777 won by resignation"]

1. e4 {[%clk 0:03:00.9]} 1... c5 {[%clk 0:02:59.4]} 2. Nf3 {[%clk 0:02:59.6]}
2... e6 {[%clk 0:02:59.2]} 3. g3 {[%clk 0:02:54.1]} 3... Nc6 {[%clk 0:02:56]} 4.
Bg2 {[%clk 0:02:52.9]} 4... d5 {[%clk 0:02:52.5]} 5. exd5 {[%clk 0:02:51.6]}
5... exd5 {[%clk 0:02:52.8]} 6. O-O {[%clk 0:02:52.2]} 6... g6 {[%clk
0:02:51.4]} 7. d4 {[%clk 0:02:50.4]} 7... c4 {[%clk 0:02:46.8]} 8. Re1+ {[%clk
0:02:39.5]} 8... Nge7 {[%clk 0:02:25.8]} 9. Bg5 {[%clk 0:02:31.7]} 9... Bg7
{[%clk 0:02:22]} 10. Qe2 {[%clk 0:02:28.6]} 10... f6 {[%clk 0:02:19.5]} 11. Bf4
{[%clk 0:02:23.4]} 11... O-O {[%clk 0:02:13.5]} 12. Nc3 {[%clk 0:02:23.1]} 12...
Nf5 {[%clk 0:02:09.5]} 13. Rad1 {[%clk 0:02:16.3]} 13... a6 {[%clk 0:01:57.2]}
14. Na4 {[%clk 0:02:09.4]} 14... b5 {[%clk 0:01:51.2]} 15. Nc5 {[%clk
0:02:05.9]} 15... Qb6 {[%clk 0:01:46]} 16. c3 {[%clk 0:01:53.5]} 16... g5 {[%clk
0:01:41.2]} 17. Bc1 {[%clk 0:01:47.6]} 17... Nd6 {[%clk 0:01:36.1]} 18. h4
{[%clk 0:01:33.8]} 18... h6 {[%clk 0:01:34.1]} 19. hxg5 {[%clk 0:01:29.8]} 19...
hxg5 {[%clk 0:01:30.6]} 20. Nxg5 {[%clk 0:01:28.8]} 20... fxg5 {[%clk
0:01:28.4]} 21. Bxd5+ {[%clk 0:01:29.3]} 21... Nf7 {[%clk 0:01:22.6]} 22. Bxg5
{[%clk 0:01:25.2]} 22... Ra7 {[%clk 0:01:11.2]} 23. Qf3 {[%clk 0:01:19]} 23...
Bb7 {[%clk 0:00:40.3]} 24. Nxb7 {[%clk 0:01:02.9]} 24... Rxb7 {[%clk 0:00:35.7]}
25. Bc1 {[%clk 0:01:02.1]} 25... Rc7 {[%clk 0:00:23.2]} 26. Re6 {[%clk
0:00:58.2]} 26... Nfe5 {[%clk 0:00:10.9]} 27. Rxe5+ {[%clk 0:00:56.4]} 27... Kh8
{[%clk 0:00:06.9]} 28. Qh5+ {[%clk 0:00:55.1]} 1-0

[Event "Early-Titled-Tuesday-Blitz-May-07-2024"]
[Site "Chess.com"]
[Date "2024.05.07"]
[Round "8"]
[White "Journey_to_GrandMaster_YT"]
[Black "Kushch_Nikolai"]
[Result "0-1"]
[WhiteElo "2530"]
[BlackElo "2437"]
[TimeControl "180+1"]
[EndTime "9:33:29 PDT"]
[Termination "Kushch_Nikolai won by resignation"]

1. d4 {[%clk 0:03:00.9]} 1... Nf6 {[%clk 0:02:58.5]} 2. Nf3 {[%clk 0:02:59.8]}
2... e6 {[%clk 0:02:58.4]} 3. e3 {[%clk 0:02:59.3]} 3... b6 {[%clk 0:02:58]} 4.
Bd3 {[%clk 0:02:59.9]} 4... Bb7 {[%clk 0:02:58.1]} 5. Nbd2 {[%clk 0:03:00]} 5...
c5 {[%clk 0:02:56.5]} 6. O-O {[%clk 0:02:54.6]} 6... Be7 {[%clk 0:02:55.9]} 7.
b3 {[%clk 0:02:54.2]} 7... O-O {[%clk 0:02:55.5]} 8. Bb2 {[%clk 0:02:54]} 8...
Qc7 {[%clk 0:02:55.6]} 9. c4 {[%clk 0:02:51.6]} 9... d6 {[%clk 0:02:55]} 10. Qe2
{[%clk 0:02:50.1]} 10... a6 {[%clk 0:02:54.5]} 11. Rad1 {[%clk 0:02:49.7]} 11...
Nbd7 {[%clk 0:02:54.6]} 12. Rfe1 {[%clk 0:02:47.7]} 12... Rac8 {[%clk
0:02:53.8]} 13. Bb1 {[%clk 0:02:47]} 13... Qb8 {[%clk 0:02:53.3]} 14. h3 {[%clk
0:02:30]} 14... Qa8 {[%clk 0:02:52.8]} 15. Nf1 {[%clk 0:02:11.6]} 15... Rfe8
{[%clk 0:02:52.5]} 16. Ng3 {[%clk 0:02:11.5]} 16... Nf8 {[%clk 0:02:51.7]} 17.
d5 {[%clk 0:02:07.7]} 17... exd5 {[%clk 0:02:46.5]} 18. Nf5 {[%clk 0:02:07.5]}
18... N8d7 {[%clk 0:02:20.1]} 19. Nxe7+ {[%clk 0:01:59.4]} 19... Rxe7 {[%clk
0:02:19.7]} 20. Nh4 {[%clk 0:02:00]} 20... d4 {[%clk 0:02:13]} 21. Qd3 {[%clk
0:01:46.4]} 21... Be4 {[%clk 0:02:10.3]} 22. Qd2 {[%clk 0:01:46.5]} 22... Bxb1
{[%clk 0:02:09.5]} 23. Rxb1 {[%clk 0:01:47.4]} 23... dxe3 {[%clk 0:02:03]} 24.
Rxe3 {[%clk 0:01:45]} 24... Rxe3 {[%clk 0:02:01.2]} 25. Qxe3 {[%clk 0:01:45.9]}
25... Re8 {[%clk 0:01:51.3]} 26. Qg3 {[%clk 0:01:45.6]} 26... Qe4 {[%clk
0:01:46.1]} 27. Rd1 {[%clk 0:01:43.4]} 27... Qe2 {[%clk 0:01:39.2]} 28. Rxd6
{[%clk 0:00:54.7]} 28... Qxb2 {[%clk 0:01:35.7]} 29. Nf5 {[%clk 0:00:55.3]}
29... g6 {[%clk 0:01:01.7]} 30. Nh6+ {[%clk 0:00:48.1]} 30... Kg7 {[%clk
0:00:59.8]} 31. Qh4 {[%clk 0:00:26.8]} 31... Qc1+ {[%clk 0:00:57.8]} 32. Kh2
{[%clk 0:00:25.3]} 32... Qxh6 {[%clk 0:00:57.7]} 33. Qg3 {[%clk 0:00:22.6]}
33... Ne4 {[%clk 0:00:55.3]} 0-1

[Event "Early-Titled-Tuesday-Blitz-May-07-2024"]
[Site "Chess.com"]
[Date "2024.05.07"]
[Round "8"]
[White "baki83"]
[Black "PavelShkapenko"]
[Result "1-0"]
[WhiteElo "2921"]
[BlackElo "2722"]
[TimeControl "180+1"]
[EndTime "9:33:33 PDT"]
[Termination "baki83 won by resignation"]

1. e4 {[%clk 0:03:00.9]} 1... e5 {[%clk 0:02:56.5]} 2. Nf3 {[%clk 0:03:00.8]}
2... Nc6 {[%clk 0:02:56.5]} 3. Bb5 {[%clk 0:03:00.7]} 3... Bc5 {[%clk
0:02:55.8]} 4. O-O {[%clk 0:03:00.2]} 4... d6 {[%clk 0:02:55.3]} 5. c3 {[%clk
0:03:00.2]} 5... Bd7 {[%clk 0:02:55.6]} 6. d4 {[%clk 0:02:59.2]} 6... Bb6 {[%clk
0:02:56.2]} 7. Be3 {[%clk 0:02:53.2]} 7... Nge7 {[%clk 0:02:55.5]} 8. Nbd2
{[%clk 0:02:51.9]} 8... O-O {[%clk 0:02:54.7]} 9. a4 {[%clk 0:02:49.9]} 9... a6
{[%clk 0:02:47.2]} 10. Bc4 {[%clk 0:02:47.5]} 10... Bg4 {[%clk 0:02:36.8]} 11.
h3 {[%clk 0:02:41.6]} 11... Bxf3 {[%clk 0:02:36]} 12. Nxf3 {[%clk 0:02:40.6]}
12... exd4 {[%clk 0:02:35.6]} 13. cxd4 {[%clk 0:02:26.3]} 13... d5 {[%clk
0:02:35.7]} 14. Bd3 {[%clk 0:02:13]} 14... dxe4 {[%clk 0:02:07.6]} 15. Bxe4
{[%clk 0:02:13.9]} 15... f5 {[%clk 0:02:07.9]} 16. Bxc6 {[%clk 0:02:14]} 16...
Nxc6 {[%clk 0:01:20.2]} 17. d5 {[%clk 0:02:08.8]} 17... Bxe3 {[%clk 0:01:18.1]}
18. dxc6 {[%clk 0:02:07.9]} 18... Qxd1 {[%clk 0:01:18.1]} 19. Rfxd1 {[%clk
0:02:07.3]} 19... Bc5 {[%clk 0:01:17.4]} 20. cxb7 {[%clk 0:01:37.6]} 20... Rab8
{[%clk 0:01:17.2]} 21. Ne5 {[%clk 0:01:38.1]} 21... Rxb7 {[%clk 0:01:01.6]} 22.
Nd7 {[%clk 0:01:37.5]} 22... Bxf2+ {[%clk 0:01:00.6]} 23. Kxf2 {[%clk
0:01:36.7]} 23... Rxb2+ {[%clk 0:01:01.2]} 24. Kf1 {[%clk 0:01:29.6]} 24... Re8
{[%clk 0:01:01.1]} 25. Re1 {[%clk 0:01:24.8]} 25... Kf7 {[%clk 0:00:42.1]} 26.
Nc5 {[%clk 0:01:00]} 26... Rxe1+ {[%clk 0:00:30.2]} 27. Rxe1 {[%clk 0:00:59.3]}
27... a5 {[%clk 0:00:30.8]} 28. Re5 {[%clk 0:00:56.4]} 28... g6 {[%clk
0:00:28.1]} 29. Nd3 {[%clk 0:00:52]} 29... Rd2 {[%clk 0:00:24.4]} 30. Ne1 {[%clk
0:00:50.4]} 30... Ra2 {[%clk 0:00:20.6]} 31. Rxa5 {[%clk 0:00:50.7]} 31... Ke6
{[%clk 0:00:19.6]} 32. Nd3 {[%clk 0:00:49.4]} 32... Kd6 {[%clk 0:00:19.9]} 33.
Ra6+ {[%clk 0:00:48.7]} 33... Kd5 {[%clk 0:00:19.7]} 34. Nb4+ {[%clk 0:00:48.8]}
1-0

[Event "Early-Titled-Tuesday-Blitz-May-07-2024"]
[Site "Chess.com"]
[Date "2024.05.07"]
[Round "8"]
[White "GMT4114"]
[Black "NowInChess"]
[Result "0-1"]
[WhiteElo "1987"]
[BlackElo "2245"]
[TimeControl "180+1"]
[EndTime "9:33:37 PDT"]
[Termination "NowInChess won by resignation"]

1. e4 {[%clk 0:03:00.9]} 1... e6 {[%clk 0:03:00.2]} 2. d4 {[%clk 0:03:00]} 2...
d5 {[%clk 0:03:00.8]} 3. Nc3 {[%clk 0:03:00.3]} 3... Nc6 {[%clk 0:03:00.8]} 4.
e5 {[%clk 0:02:39.4]} 4... f6 {[%clk 0:03:00.4]} 5. Bb5 {[%clk 0:02:06.5]} 5...
Bd7 {[%clk 0:02:49.5]} 6. Nf3 {[%clk 0:01:45.5]} 6... fxe5 {[%clk 0:02:48.7]} 7.
dxe5 {[%clk 0:01:44.8]} 7... Bc5 {[%clk 0:02:14.2]} 8. O-O {[%clk 0:01:42.6]}
8... Nge7 {[%clk 0:02:11]} 9. Bg5 {[%clk 0:01:42.3]} 9... O-O {[%clk 0:02:02.1]}
10. a3 {[%clk 0:01:40.6]} 10... Qe8 {[%clk 0:01:52.4]} 11. Qe2 {[%clk
0:01:30.4]} 11... a6 {[%clk 0:01:40]} 12. Bd3 {[%clk 0:01:29.9]} 12... Qh5
{[%clk 0:01:37.6]} 13. Rae1 {[%clk 0:01:16.9]} 13... Rf7 {[%clk 0:01:08.7]} 14.
h3 {[%clk 0:01:06.2]} 14... Raf8 {[%clk 0:01:05.5]} 15. Kh2 {[%clk 0:01:02.4]}
15... Rxf3 {[%clk 0:00:50.3]} 16. gxf3 {[%clk 0:00:55.5]} 16... Qxg5 {[%clk
0:00:48.1]} 17. Rg1 {[%clk 0:00:55]} 17... Qf4+ {[%clk 0:00:43.7]} 18. Rg3
{[%clk 0:00:52.6]} 18... Nd4 {[%clk 0:00:38.5]} 19. Qd1 {[%clk 0:00:39.6]} 19...
Nxf3+ {[%clk 0:00:38.2]} 20. Kg2 {[%clk 0:00:16.6]} 20... Nxe1+ {[%clk
0:00:37.2]} 21. Qxe1 {[%clk 0:00:17.5]} 21... Bxf2 {[%clk 0:00:32.4]} 0-1

[Event "Early-Titled-Tuesday-Blitz-May-07-2024"]
[Site "Chess.com"]
[Date "2024.05.07"]
[Round "8"]
[White "LeninGuerra"]
[Black "cthulhuuu"]
[Result "1/2-1/2"]
[WhiteElo "2659"]
[BlackElo "2524"]
[TimeControl "180+1"]
[EndTime "9:33:41 PDT"]
[Termination "Game drawn by repetition"]

1. e4 {[%clk 0:03:00.9]} 1... d6 {[%clk 0:02:59.8]} 2. d4 {[%clk 0:03:00.7]}
2... Nf6 {[%clk 0:03:00.1]} 3. Nc3 {[%clk 0:03:00.8]} 3... c6 {[%clk 0:03:00.4]}
4. Nf3 {[%clk 0:03:01.1]} 4... Bg4 {[%clk 0:03:00.3]} 5. Be2 {[%clk 0:03:01.4]}
5... e6 {[%clk 0:03:00.7]} 6. Be3 {[%clk 0:03:01.6]} 6... d5 {[%clk 0:03:01.1]}
7. e5 {[%clk 0:03:01.5]} 7... Nfd7 {[%clk 0:03:01.7]} 8. a4 {[%clk 0:03:01.3]}
8... c5 {[%clk 0:03:01.4]} 9. O-O {[%clk 0:03:01]} 9... Bxf3 {[%clk 0:03:01]}
10. Bxf3 {[%clk 0:03:00.9]} 10... cxd4 {[%clk 0:03:01.4]} 11. Bxd4 {[%clk
0:03:01.8]} 11... Nc6 {[%clk 0:03:01.9]} 12. Re1 {[%clk 0:03:00.8]} 12... Nxd4
{[%clk 0:02:56.5]} 13. Qxd4 {[%clk 0:02:58.7]} 13... Bc5 {[%clk 0:02:57]} 14.
Qd2 {[%clk 0:02:58.5]} 14... O-O {[%clk 0:02:51.7]} 15. Rad1 {[%clk 0:02:55.1]}
15... Rc8 {[%clk 0:02:51.5]} 16. Qe2 {[%clk 0:02:29.9]} 16... Qb6 {[%clk
0:02:39.6]} 17. Bxd5 {[%clk 0:01:40]} 17... exd5 {[%clk 0:02:40.5]} 18. Nxd5
{[%clk 0:01:40.7]} 18... Qe6 {[%clk 0:02:23.2]} 19. b4 {[%clk 0:01:35.6]} 19...
Bb6 {[%clk 0:02:06.9]} 20. a5 {[%clk 0:01:31.6]} 20... Bc7 {[%clk 0:02:04.2]}
21. f4 {[%clk 0:01:28.7]} 21... Rfd8 {[%clk 0:01:48]} 22. f5 {[%clk 0:01:26.3]}
22... Qxe5 {[%clk 0:01:03.3]} 23. Ne7+ {[%clk 0:01:26.2]} 23... Kf8 {[%clk
0:01:04]} 24. Nxc8 {[%clk 0:01:09.8]} 24... Qxh2+ {[%clk 0:00:37.8]} 25. Kf1
{[%clk 0:01:08.5]} 25... Qh1+ {[%clk 0:00:32.7]} 26. Kf2 {[%clk 0:01:08.6]}
26... Qh4+ {[%clk 0:00:31.4]} 27. Kg1 {[%clk 0:00:58]} 27... Qh2+ {[%clk
0:00:04.5]} 28. Kf2 {[%clk 0:00:57.9]} 28... Qh4+ {[%clk 0:00:02.8]} 29. Kf1
{[%clk 0:00:52.3]} 29... Qh1+ {[%clk 0:00:02.9]} 30. Kf2 {[%clk 0:00:52.5]}
30... Qh4+ {[%clk 0:00:03.3]} 1/2-1/2